Cogmind - Beta 11 @@@ ROGUE MODE // 2022.03.23 @ 09:49:30 Player: Red Box Result: Destroyed by G-47 Trooper with Particle Gun Performance ------------- Evolutions (0) 0 Regions Visited (2) 400 Robots Destroyed (16) 80 Value Destroyed (426) 426 Prototype IDs (4) 80 Alien Tech Used (0) 0 Bonus (0) 0 TOTAL SCORE: 986 Bonus ------- None Cogmind --------- Core Integrity 0/250 Matter 210/300 Energy 250/250 System Corruption 0% Temperature Cool (9) Movement Rolling (115) Ox1 Location -10/Mines Parts ------- > --- POWER (1) -------- Ion Engine > --- PROPULSION (2) --- Compact Wheel > --- UTILITY (2) ------ Large Storage Unit Targeting Computer > --- WEAPON (2) ------- Assault Rifle Assault Rifle > --- INVENTORY (15) --- Compact Wheel Compact Wheel Compact Wheel Compact Wheel Improved Heat Sink Large Battery (200) Hardened Light Armor Plating Medium Laser Advanced Beam Cannon Advanced Beam Cannon Advanced Beam Cannon Advanced Beam Cannon Grenade Launcher Grenade Launcher Mining Laser Peak State ------------ > --- POWER ------------ Ion Engine > --- PROPULSION ------- Wheel Wheel > --- UTILITY ---------- Large Storage Unit Targeting Computer > --- WEAPON ----------- Advanced Beam Cannon Assault Rifle > --- INVENTORY -------- Ion Engine Compact Wheel Compact Wheel Compact Wheel Compact Wheel Compact Wheel Compact Wheel Improved Heat Sink Large Battery Medium Laser Particle Gun Advanced Beam Cannon Assault Rifle Assault Rifle Grenade Launcher [Rating: 11] Favorites ----------- Power Ion Engine Engine Ion Engine Propulsion Wheel Leg Aluminum Leg Wheel Wheel Utility Targeting Computer Device Terrain Scanner Storage Large Storage Unit Processor Targeting Computer Protection Light Armor Plating Weapon Assault Rifle Energy Cannon Advanced Beam Cannon Ballistic Gun Assault Rifle Launcher Grenade Launcher Build | -11 -10 -10 ------- Run | Scr Mat Min Slots Evolved . | . . . Power . | . . . Propulsion . | . . . Utility . | . . . Weapon . | . . . Parts Attached 27 | 6 21 . Power 2 | 1 1 . Engine 2 | 1 1 . Core . | . . . Reactor . | . . . Propulsion 7 | 2 5 . Treads . | . . . Leg 2 | 2 . . Wheel 5 | . 5 . Hover . | . . . Flight . | . . . Utility 7 | 1 6 . Device 1 | . 1 . Storage 4 | 1 3 . Processor 1 | . 1 . Hackware . | . . . Protection 1 | . 1 . Artifact . | . . . Weapon 11 | 2 9 . Energy Gun . | . . . Energy Cannon 1 | . 1 . Ballistic Gun 8 | 2 6 . Ballistic Cannon . | . . . Launcher 2 | . 2 . Special Weapon . | . . . Impact Weapon . | . . . Slashing Weapon . | . . . Piercing Weapon . | . . . Special Melee Weapon . | . . . Unidentified Prototypes 1 | . 1 . Parts Lost 1 | . . 1 Power . | . . . Propulsion 1 | . . 1 Utility . | . . . Weapon . | . . . Highest Loss Streak 1 | . . 1 To Critical Strikes . | . . . Average Slot Usage (%) 98 | . 98 95 Engine 14 | . 14 14 Leg 8 | . 8 . Wheel 19 | . 19 24 Storage 14 | . 14 14 Processor 11 | . 11 14 Ballistic Gun 24 | . 24 28 Launcher 2 | . 2 . Naked Turns . | . . . Heaviest Build 31 | 13 31 29 Greatest Support 32 | 20 32 32 Greatest Overweight (x) 2 | 2 1 . Average Overweight (x) . | . . . Largest Inventory Capacity 15 | 8 15 15 Average Capacity 13 | 7 13 15 Most Carried 15 | 6 15 15 Average Carried 12 | 3 12 15 Final Capacity 15 | 8 15 15 Final Carried 15 | 6 15 15 Class Distribution -------------------- 100% | Mutant Dominant Class ---------------- Mutant | -10/Materials Mutant | -10/Mines Resources | -11 -10 -10 ----------- Run | Scr Mat Min Matter Collected 777 | 201 576 . Remotely . | . . . Salvage Created 665 | . 635 30 Parts 35 | . 32 3 Haulers Intercepted 2 | . 2 . Recyclers Shooed 1 | . 1 . Parts Field Recycled . | . . . Retrieved Matter . | . . . Parts Self-Destructed . | . . . Prevented . | . . . Kills | -11 -10 -10 ------- Run | Scr Mat Min Combat Hostiles Destroyed 10 | . 9 1 Guns 10 | . 9 1 Classes Destroyed 5 | . 5 . Builder 1 | . 1 . Hauler 2 | . 2 . Recycler 1 | . 1 . Watcher 2 | . 2 . Grunt 10 | . 9 1 Best Kill Streak 3 | . 3 1 Combat Bots Only 3 | . 3 1 Max Kills in Single Turn 1 | . 1 1 Gunslinging . | . . . Exploded . | . . . Melee . | . . . Uniques/NPCs Destroyed . | . . . Combat | -11 -10 -10 -------- Run | Scr Mat Min Damage Taken 691 | . 519 172 Core 264 | . 151 113 Absorbed by Shields . | . . . Regen/Repaired (Parts) 116 | . 116 . Core Remaining (%) 100 | 100 . . Volleys Fired 80 | . 72 8 Largest 2 | . 2 2 Hottest 40 | . 40 40 Shots Fired 157 | . 141 16 Gun 157 | . 141 16 Cannon . | . . . Launcher . | . . . Special . | . . . Kinetic 157 | . 141 16 Thermal . | . . . Explosive . | . . . Electromagnetic . | . . . Robot Hit Streak 13 | . 13 6 Robot Miss Streak 7 | . 7 1 Penetration Max . | . . . Secondary Targets 1 | . . 1 Max Gunslinging Chain 1 | . . 1 Shots Hit Robots 100 | . 87 13 Core Hits 31 | . 29 2 Critical Kills 2 | . 2 . Critical Parts Destroyed . | . . . Critical Strikes 2 | . 2 . Destroy 2 | . 2 . Melee Attacks . | . . . Impact . | . . . Slashing . | . . . Piercing . | . . . Sneak Attacks . | . . . Combat Hostiles . | . . . Follow-up Attacks . | . . . Damage Inflicted 1199 | . 1033 166 Guns 1192 | . 1026 166 Cannons . | . . . Explosions . | . . . Melee . | . . . Ramming 7 | . 7 . Kinetic 1192 | . 1026 166 Thermal . | . . . Explosive . | . . . Electromagnetic . | . . . Impact . | . . . Slashing . | . . . Piercing . | . . . Highest Corruption . | . . . Average Corruption . | . . . Corruption Purged . | . . . Corruption Blocked . | . . . Overload Shots . | . . . Overflow Damage . | . . . Projectiles . | . . . Explosions . | . . . Melee . | . . . Knockbacks . | . . . Impact . | . . . Kinetic . | . . . Secondary . | . . . Self-Inflicted Damage . | . . . Shots . | . . . Rammed . | . . . Targets Rammed 1 | . 1 . Kicked 1 | . 1 . Crushed . | . . . Highest Temperature 12 | . 12 2 Average Temperature 4 | . 5 2 Received Heat Transfer 360 | . 267 93 Siege Activations . | . . . Robots Corrupted . | . . . Combat Hostiles . | . . . Parts Fried . | . . . Impact Corruptions . | . . . Robots Melted . | . . . Combat Hostiles . | . . . Parts Melted . | . . . Heat Transferred . | . . . Parts Sabotaged . | . . . Parts Stolen . | . . . Parts Stripped . | . . . Power Chain Reactions . | . . . Missiles Intercepted . | . . . Alert | -11 -10 -10 ------- Run | Scr Mat Min Peak Influence 139 | . 139 28 Initial 8 | . . 8 Average 42 | . 45 11 Maximum Alert Level . | . . . Low Security (%) 100 | 100 100 100 Level 1 . | . . . Level 2 . | . . . Level 3 . | . . . Level 4 . | . . . Level 5 . | . . . High Security . | . . . Max Security . | . . . Squads Dispatched 1 | . 1 . Investigation 1 | . 1 . Extermination . | . . . Reinforcement . | . . . Assault . | . . . Garrison . | . . . Intercept . | . . . Searches Triggered . | . . . Construction Impeded . | . . . Haulers Reinforced . | . . . Active Scanning Responses . | . . . Cargo Convoy Interrupts . | . . . Stealth | -11 -10 -10 --------- Run | Scr Mat Min Distress Signals . | . . . Communications Jammed . | . . . Distress Signals . | . . . Times Spotted 23 | . 21 2 Peak Tracking Total 4 | . 4 2 Tactical Retreats 1 | . 1 . Traps | -11 -10 -10 ------- Run | Scr Mat Min Traps Triggered 1 | . 1 . Indirectly . | . . . Trap Hack Attempts . | . . . Triggered . | . . . Disarmed . | . . . Reprogrammed . | . . . Reused . | . . . Traps Extracted . | . . . Installed . | . . . Triggered . | . . . Machines | -11 -10 -10 ---------- Run | Scr Mat Min Machines Disabled . | . . . Max in Single Turn . | . . . Machines Sabotaged . | . . . Garrisons Compromised . | . . . Overloaded Fab Kills . | . . . Hacking | -11 -10 -10 --------- Run | Scr Mat Min Machines Accessed 11 | . 11 . Terminals 8 | . 8 . Fabricators . | . . . Repair Stations 1 | . 1 . Recycling Units 2 | . 2 . Scanalyzers . | . . . Garrison Access . | . . . Total Hacks 40 | . 40 . Successful 29 | . 29 . Failed 10 | . 10 . Catastrophic 2 | . 2 . Database Lockouts 1 | . 1 . Manual 14 | . 14 . Terminals 25 | . 25 . Fabricators . | . . . Repair Stations 12 | . 12 . Recycling Units 3 | . 3 . Scanalyzers . | . . . Garrison Access . | . . . Terminal Hacks 9 | . 9 . Robot Analysis 1 | . 1 . Prototype ID Bank 2 | . 2 . Terminal Index 1 | . 1 . Unreport Threat 1 | . 1 . Locate Traps 3 | . 3 . Registered Components 1 | . 1 . Fabricator Hacks . | . . . Repair Station Hacks 12 | . 12 . Scan Component 6 | . 6 . Repair 6 | . 6 . Recycling Unit Hacks . | . . . Scanalyzer . | . . . Garrison Access Hacks . | . . . Unauthorized Hacks 8 | . 8 . Terminals 7 | . 7 . Track 1 | . 1 . Assimilate 1 | . 1 . Botnet 4 | . 4 . Operators 1 | . 1 . Fabricators . | . . . Repair Stations . | . . . Recycling Units 1 | . 1 . Reject 1 | . 1 . Scanalyzers . | . . . Garrison Access . | . . . Data Cores Recovered . | . . . Used . | . . . Hacking Detections 8 | . 8 . Full Trace Events 1 | . 1 . Feedback Events . | . . . Feedback Blocked . | . . . Robot Schematics Acquired . | . . . Robots Built . | . . . Authchips . | . . . Time . | . . . Total Robot Build Rating . | . . . Part Schematics Acquired . | . . . Parts Built . | . . . Authchips . | . . . Time . | . . . Total Part Build Rating . | . . . Parts Repaired 6 | . 6 . Time 168 | . 168 . Parts Recycled . | . . . Recycled Matter . | . . . Retrieved Matter . | . . . Retrieved Components . | . . . Parts Scanalyzed . | . . . Part Schematics Acquired . | . . . Parts Damaged . | . . . Bothacking | -11 -10 -10 ------------ Run | Scr Mat Min Used RIF Installer . | . . . Robots Hacked . | . . . Non-combat . | . . . Combat . | . . . Robot Hacks Applied . | . . . Relay Couplers Released . | . . . Fabnet Peak Effective % . | . . . Robots Rewired . | . . . Allies Hacked . | . . . Hacks Repelled . | . . . Allies | -11 -10 -10 -------- Run | Scr Mat Min Total Allies . | . . . Largest Group . | . . . Highest-Rated Group . | . . . Highest-Rated Ally . | . . . Total Orders . | . . . Ally Attacks . | . . . Total Damage . | . . . Kills . | . . . Allies Corrupted . | . . . Allies Melted . | . . . Intel | -11 -10 -10 ------- Run | Scr Mat Min Robot Analysis Total 1 | . 1 . Derelict Logs Recovered . | . . . Drone Launches . | . . . Drone Recoveries . | . . . Exploration | -11 -10 -10 ------------- Run | Scr Mat Min Turns Passed 1930 | 78 1787 65 Spaces Moved 1241 | 54 1147 40 Core 5 | 5 . . Treads . | . . . Legs 357 | 49 308 . Wheels 879 | . 839 40 Hover . | . . . Flight . | . . . Fastest Speed 50 | 50 95 100 Average Speed 105 | 118 104 100 Slowest Speed 190 | 150 190 100 Overloaded Moves . | . . . Propulsion Burnouts . | . . . Robots Hopped . | . . . Cave-ins Triggered . | . . . Exploration Rate (%) 36 | 3 98 9 Regions Visited 2 Branch Regions 1 Pre-discovered Areas . | . . . Known Exits Taken . | . . . Unknown Exits Taken 2 | 1 1 . Scrap Searched . | . . . Spaces Dug . | . . . Terrain Destroyed . | . . . Melee . | . . . Projectile . | . . . AOE . | . . . Terrain Rammed . | . . . Walls Destroyed . | . . . Machines Disabled . | . . . Actions | -11 -10 -10 --------- Run | Scr Mat Min Total 1713 | 65 1597 51 Wait 311 | . 308 3 Move 1239 | 53 1146 40 Hop . | . . . Pick Up 34 | 6 28 . Fast Attach 13 | 6 7 . Attach 1 | . 1 . Detach . | . . . Swap 13 | . 13 . Drop 21 | . 21 . Fire 80 | . 72 8 Melee . | . . . Ram . | . . . Kick 1 | . 1 . Crush . | . . . Escape Stasis . | . . . Rewire . | . . . Trap . | . . . Miscellaneous . | . . . Route ------- -11/Scrapyard -10/Materials (discovered 5 exits: [*Mat x3] / [*Min x2]) -10/Mines History --------- Turn | Location | Event 13 | -11/Scrapyard | Discovered new exit (range 15) 79 | -11/Scrapyard | Entered Materials 181 | -10/Materials | Discovered new exit (range 8) 283 | -10/Materials | Discovered new exit (range 16) 301 | -10/Materials | Build established: Mutant 630 | -10/Materials | Discovered new exit (range 10) 632 | -10/Materials | Discovered new exit (range 15) 738 | -10/Materials | Central database locked down 838 | -10/Materials | Discovered new exit (range 10) 1358 | -10/Materials | Core integrity fell below 50% 1650 | -10/Materials | Repaired Grenade Launcher 1677 | -10/Materials | Repaired Assault Rifle 1717 | -10/Materials | Repaired Imp. Heat Sink 1743 | -10/Materials | Repaired Grenade Launcher 1806 | -10/Materials | Repaired Assault Rifle 1832 | -10/Materials | Repaired Assault Rifle 1866 | -10/Materials | Entered Mines 1891 | -10/Mines | Met a Derelict bent on vengeance 1920 | -10/Mines | Core integrity fell below 20% 1931 | -10/Mines | Destroyed by G-47 Trooper with Particle Gun Last Messages --------------- 01806_ Repair station completes Assault Rifle repairs. 01806_ Connecting with Repair Station... >>Scan(Assault Rifle) Scanning Assault Rifle... Ready to Repair: Assault Rifle Rating: 1 Time: 26 >>Repair Repairing Assault Rifle... ETC: 26 01806_ Acquired Assault Rifle. 01832_ Repair station completes Assault Rifle repairs. 01832_ Acquired Assault Rifle. 01843_ K-01 Serf cleans the Machine. LOCATION=UNKNOWN GOAL=ESCAPE 01912_ G-34 Mercenary destroyed. 01912_ Switching to secondary target: G-47 Trooper. 01913_ Com. Wheel destroyed. Map ----- +----------------------------------------------------+ | | | ?????????????????????????????????????? | | ?????????????????????????????????????? | | ?????????????????????????????????????? | | ?????????????????????????????????????? | | ?????????????????????????????????????? | | ?????????????????????????????????????? | | ?????????????????????????????????????? | | ?????????????????????????????????????? | | ?????????????????????????????????????? | | ?????????????????????????????????????? | | ?????????????????????????####????????? | | ????????????????????????## ##???????? | | ????????????????????????# #???????? | | ????????????????????????# ##??????? | | ????????????????????????## ##?????? | | ?????????????????????????### ##????? | | ???????????????????????????## ##???? | | ??????????????#?????????????# ##??? | | ??????????????# ????????????## #??? | | ?????????????## ????????????## #??? | | ?????????????# ???????????## #??? | | ?????????????# #?####???### #??? | | ?????????????# ## ##### #??? | | ??????????????# *g ##??? | | ??????????????# =%= @ ##???? | | ??????????????# ###### ##????? | | ??????????????# #?????# #?????? | | ?????????????# ??????# #?????? | | ????????????# ???????## ##?????? | | ????????????# ?????????#####??????? | | ??????????? ?????????????????????? | | ??????????#### ?????????????????????? | | ?????????????# ??????????????????????? | | ????????????? ???????????????????????? | | ????????????#????????????????????????? | | ?????????????????????????????????????? | | ?????????????????????????????????????? | | ?????????????????????????????????????? | | ?????????????????????????????????????? | | ?????????????????????????????????????? | | ?????????????????????????????????????? | | ?????????????????????????????????????? | | ?????????????????????????????????????? | | ?????????????????????????????????????? | | ?????????????????????????????????????? | | ?????????????????????????????????????? | | ?????????????????????????????????????? | | ?????????????????????????????????????? | | ?????????????????????????????????????? | +----------------------------------------------------+ Best States ------------- Heat Dissipation 25 Energy Generation 10 Energy Capacity 250 Matter Stores 300 Matter Capacity 300 Sight Range 16 Terrain Scan Range 14 Terrain Scan Density 10 Armor Coverage 150 Evasion (%) 55 Targeting Accuracy 5 Item Schematics ----------------- None Robot Schematics ------------------ None Fabricated ------------ Nothing Alien Tech Used ----------------- None Achievements -------------- None Challenges ------------ None Game ------ Seed IntegratedDefenseCasing Manual? 0 Play Time 01:13:10 Cumulative 172.3 hours Start 2022.03.22 @ 18:42:09 End 2022.03.23 @ 09:49:30 Sessions 1 Manual Loads 0 Difficulty Rogue Special Mode None Game No. 166 Rogue 166 Adventurer 0 Explorer 0 Win Type - Total 0 Types 0/0/0/0/0/0/0/0/0 Lore% 39 Gallery% 46 Achievement% 35 Wizard Run 0 Options --------- ASCII 0 Keyboard 0 Movement Mouse Keybinds 0 Fullscreen 1 Font 16/SmallcapsGlow Map View 75x55 Tactical HUD 1 Map Filters NONE Filters NONE Steam 1 RUN: 15bb88d6-9106-4236-8c20-5163172e17b0